bitfinex-derivatives/quotes_ETHF0:USTF0_20250430
["timestamp","ask_amount","ask_price","bid_price","bid_amount"]
[1746042969637,4.6275,1792.0,1791.9,1.11607]
[1746042969839,3.828,1792.0,1791.9,1.11607]
[1746042970228,3.2078,1792.1,1792.0,1.11601]
[1746042970534,3.2078,1792.1,1792.0,2.83821]
[1746042971131,7.0358,1792.1,1792.0,2.83821]
[1746042972241,3.2078,1792.1,1792.0,2.83821]
[1746042973244,0.8124,1792.3,1792.2,1.11589]
[1746042973440,0.8202,1792.4,1792.3,1.11582]
[1746042974144,4.6482,1792.4,1792.3,1.11582]
[1746042974342,3.828,1792.4,1792.3,1.11582]
[1746042975342,4.7907,1792.5,1792.4,1.11576]
[1746042975739,3.2078,1792.5,1792.4,2.73036]
[1746042975932,0.7995,1792.6,1792.5,1.1157]
[1746042976136,0.7995,1792.6,1792.5,2.7303]
[1746042976540,2.3784,1792.6,1792.5,2.7303]
[1746042977846,0.7995,1792.6,1792.5,2.7303]
[1746042978239,2.5149,1792.6,1792.5,1.1157]
[1746042978641,3.2078,1792.7,1792.6,1.11564]
[1746042979142,4.9232,1792.7,1792.6,1.11564]
[1746042979849,4.0724,1792.9,1792.8,1.11551]
[1746042980247,1.11529,1793.2,1793.1,1.11533]
[1746042980248,3.2078,1793.2,1793.1,1.11533]
[1746042981747,3.2078,1793.2,1793.1,2.74933]
[1746042982143,8.7536,1793.2,1793.1,2.74933]
[1746042982649,7.0358,1793.2,1793.1,2.74933]
[1746042983246,3.2078,1793.2,1793.1,2.74933]
[1746042983442,1.11535,1793.1,1792.9,5.74353]
[1746042983647,1.7053,1793.1,1793.0,1.11539]
[1746042984045,1.6853,1793.1,1793.0,1.11539]
[1746042984251,5.5133,1793.1,1792.9,5.99125]
[1746042984443,4.0228,1793.0,1792.9,1.11542]
[1746042984648,0.815,1793.0,1792.9,1.11542]
[1746042985046,4.643,1793.0,1792.9,1.11542]
[1746042985754,8.96619,1793.0,1792.9,1.11542]
[1746042986354,7.8508,1793.0,1792.9,1.11542]
[1746042987050,7.8508,1793.0,1792.8,45.65047]
[1746042987253,7.8508,1793.0,1792.9,1.11545]
[1746042987952,4.643,1793.0,1792.9,1.11545]
[1746042988253,3.828,1793.0,1792.9,1.11545]
[1746042988449,3.828,1793.0,1792.9,3.57875]
[1746042988751,3.828,1793.0,1792.9,8.45458]
[1746042989253,4.9105,1793.2,1793.1,1.11533]
[1746042989559,0.8637,1793.4,1793.3,1.1152]
[1746042991154,3.828,1793.4,1793.3,1.1152]
[1746042991355,3.828,1793.4,1793.3,6.9096]
[1746042992257,2.76726,1793.7,1793.6,1.11502]
[1746042992457,1.6523,1793.7,1793.6,1.11502]
[1746042992852,2.76725,1793.7,1793.6,1.11502]
[1746042993158,5.4803,1793.7,1793.6,1.11502]
[1746042993746,6.59525,1793.7,1793.6,1.11502]
[1746042993951,5.4803,1793.7,1793.6,1.11502]
[1746042994745,6.59525,1793.7,1793.6,1.11502]
[1746042996255,5.4803,1793.7,1793.6,1.11502]
[1746042997157,1.6523,1793.7,1793.6,1.11502]
[1746042997961,2.76725,1793.7,1793.6,1.11502]
[1746042998755,1.11505,1793.6,1793.5,1.11505]
[1746042999057,4.48545,1793.6,1793.5,1.11505]
[1746042999265,7.69325,1793.6,1793.5,1.11505]
[1746042999860,1.11514,1793.5,1793.4,1.11511]
[1746043000158,2.84374,1793.5,1793.4,1.11511]
[1746043000362,1.1152,1793.4,1793.3,1.11517]
[1746043000558,1.11537,1793.1,1793.0,1.11532]
[1746043000865,4.32317,1793.1,1793.0,1.11532]
[1746043001062,8.15117,1793.1,1793.0,1.11532]
[1746043001262,1.11544,1793.0,1792.9,1.1154]
[1746043001565,1.11545,1792.9,1792.8,1.11547]
[1746043001765,4.32325,1792.9,1792.8,1.11547]
[1746043001961,6.05245,1792.9,1792.8,1.11547]
[1746043002263,1.11551,1792.8,1792.7,41.91553]
[1746043002461,3.65161,1792.8,1792.7,41.91553]
[1746043002856,2.5361,1792.8,1792.7,41.91553]
[1746043003063,3.65161,1792.8,1792.7,41.91553]
[1746043003361,7.47961,1792.8,1792.7,41.91553]
[1746043003558,7.47961,1792.8,1792.7,1.11553]
[1746043003758,1.11561,1792.7,1792.6,1.1156]
[1746043003964,4.6349,1792.8,1792.7,1.11557]
[1746043004166,4.0147,1792.8,1792.7,1.11557]
[1746043004755,5.13021,1792.8,1792.7,1.11557]
[1746043005156,8.95821,1792.8,1792.7,1.11557]
[1746043005571,1.11557,1792.7,1792.6,40.8]
[1746043005761,1.11557,1792.7,1792.6,41.91564]
[1746043006072,4.94357,1792.7,1792.6,41.91564]
[1746043006667,1.11564,1792.6,1792.5,1.11565]
[1746043006862,4.32344,1792.6,1792.5,1.11565]
[1746043007063,1.11578,1792.5,1792.4,1.11573]
[1746043007265,0.8151,1792.5,1792.4,1.11573]
[1746043007569,0.8151,1792.5,1792.4,41.91573]
[1746043008171,4.6431,1792.5,1792.4,41.91573]
[1746043009862,4.6431,1792.5,1792.4,40.8]
[1746043009863,5.7588,1792.5,1792.4,40.8]
[1746043010065,4.6431,1792.5,1792.3,1.11578]
[1746043010364,4.0187,1792.4,1792.3,1.11578]
[1746043010572,5.1345,1792.4,1792.3,41.91578]
[1746043010868,5.1345,1792.4,1792.3,41.91582]
[1746043011170,1.11592,1792.2,1792.1,1.11588]
[1746043011370,4.32372,1792.2,1792.1,1.11588]
[1746043012072,1.11601,1792.1,1792.0,1.11596]
[1746043012266,1.11601,1792.0,1791.9,1.11603]
[1746043012471,5.13471,1792.0,1791.9,1.11603]
[1746043012866,5.13471,1792.0,1791.9,41.91603]
[1746043013267,8.96271,1792.0,1791.9,41.91603]
[1746043013771,7.8467,1792.0,1791.9,41.91603]
[1746043013969,7.0358,1792.0,1791.9,41.91603]
[1746043014174,3.2078,1792.0,1791.9,41.91603]
[1746043020179,3.2078,1792.0,1791.9,1.11603]
[1746043020581,4.32381,1792.0,1791.9,1.11603]
[1746043020880,1.11626,1791.7,1791.6,1.11623]
[1746043021280,3.828,1791.7,1791.6,1.11623]
[1746043021581,1.11626,1791.6,1791.5,1.11628]
[1746043021874,1.11638,1791.5,1791.4,1.11635]
[1746043022080,1.11638,1791.4,1791.3,1.11643]
[1746043022377,1.11638,1791.4,1791.3,1.11645]
[1746043022378,3.2078,1791.4,1791.3,1.11645]
[1746043022577,4.32418,1791.4,1791.3,1.11645]
[1746043022777,4.7996,1791.4,1791.3,1.11645]
[1746043023176,9.74398,1791.4,1791.3,1.11645]
[1746043024280,8.6276,1791.4,1791.3,1.11645]
[1746043024481,9.74398,1791.4,1791.3,1.11645]
[1746043024682,8.6276,1791.4,1791.3,1.11645]
[1746043025180,9.74398,1791.4,1791.3,1.11645]
[1746043025480,8.6276,1791.4,1791.3,1.11645]
[1746043025779,9.74398,1791.4,1791.3,1.11645]
[1746043025979,8.6276,1791.4,1791.3,1.11645]
[1746043026583,7.0358,1791.4,1791.3,1.11645]
[1746043027281,3.2078,1791.4,1791.3,1.11645]
[1746043027671,7.9051,1791.7,1791.3,7.79101]
[1746043027877,3.828,1791.7,1791.6,1.11626]
[1746043028382,3.828,1791.7,1791.6,41.91626]
[1746043029175,5.6635,1792.0,1791.9,1.11607]
[1746043030185,10.60751,1792.0,1791.9,1.11607]
[1746043030981,9.4915,1792.0,1791.9,1.11607]
[1746043031283,10.60751,1792.0,1791.9,1.11607]
[1746043031479,9.4915,1792.0,1791.9,1.11607]
[1746043033080,10.60751,1792.0,1791.9,1.11607]
[1746043033483,9.4915,1792.0,1791.9,1.11607]
[1746043034587,10.60751,1792.0,1791.9,1.11607]
[1746043035987,15.60751,1792.0,1791.9,1.11607]
[1746043036282,10.60751,1792.0,1791.9,1.11607]
[1746043036483,9.4915,1792.0,1791.9,1.11607]
[1746043036681,10.60751,1792.0,1791.9,1.11607]
[1746043037276,9.4915,1792.0,1791.5,3.737]
[1746043037479,3.2078,1791.7,1791.6,1.11626]
[1746043037680,3.2078,1791.7,1791.6,2.73816]
[1746043037985,3.2078,1791.7,1791.6,43.53816]
[1746043039285,7.0358,1791.7,1791.6,43.53816]
[1746043039487,7.0358,1791.7,1791.6,1.11626]
[1746043039680,8.7207,1791.7,1791.6,1.11626]
[1746043040481,9.8369,1791.7,1791.6,1.11626]
[1746043040681,1.11632,1791.6,1791.5,1.11628]
[1746043040883,3.64482,1791.6,1791.5,1.11628]
[1746043041279,9.14723,1791.6,1791.2,49.05567]
[1746043041479,4.32423,1791.4,1791.3,1.11638]
[1746043041890,5.16663,1791.4,1791.3,1.11638]
[1746043042188,8.99463,1791.4,1791.3,1.11638]
[1746043043692,1.11645,1791.3,1791.2,1.11649]
[1746043043892,2.85795,1791.3,1791.2,1.11649]
[1746043044080,6.68595,1791.3,1791.2,1.11649]
[1746043044694,1.11656,1791.2,1791.1,1.11652]
[1746043044885,6.88286,1791.2,1791.1,1.11652]
[1746043045084,10.71084,1791.2,1791.1,1.11657]
[1746043045485,9.5943,1791.2,1791.1,1.11657]
[1746043046090,10.71081,1791.2,1791.1,1.11657]
[1746043046997,2.79144,1791.1,1790.4,2.79253]
[1746043047189,2.79144,1791.1,1790.3,3.2078]
[1746043047190,4.3246,1790.8,1790.7,1.11675]
[1746043048186,9.0174,1790.8,1790.7,1.11675]
[1746043048388,9.0174,1790.8,1790.7,1.11682]
[1746043048889,10.6982,1790.8,1790.7,1.11682]
[1746043049190,1.11682,1790.7,1790.6,41.91685]
[1746043049394,2.79762,1790.7,1790.6,40.8]
[1746043049591,2.79762,1790.7,1790.6,41.91688]
[1746043050184,1.11688,1790.6,1790.4,2.79251]
[1746043050391,1.6808,1790.5,1790.4,1.11701]
[1746043050591,1.6808,1790.5,1790.4,2.78011]
[1746043050785,1.6808,1790.5,1790.4,43.58011]
[1746043051295,2.79775,1790.5,1790.4,41.91701]
[1746043051695,3.2078,1790.6,1790.5,1.11695]
[1746043051893,3.2078,1790.6,1790.5,2.78005]
[1746043053486,4.8212,1790.6,1790.5,2.78005]
[1746043054791,4.8212,1790.6,1789.9,12.50925]
[1746043054994,4.32482,1790.4,1790.3,1.11702]
[1746043055194,3.2078,1790.4,1790.3,1.11702]
[1746043055389,5.6841,1790.4,1790.3,1.11702]
[1746043055590,3.2078,1790.6,1790.3,2.79257]
[1746043055790,3.2078,1790.6,1790.5,1.11695]
[1746043056588,4.32468,1790.6,1790.5,1.11695]
[1746043056791,1.117,1790.5,1790.4,1.11696]
[1746043056990,2.8519,1790.5,1790.4,1.11696]
[1746043057196,6.6799,1790.5,1790.4,1.11696]
[1746043057598,6.67985,1790.5,1790.4,1.11696]
[1746043058299,1.11707,1790.4,1790.3,1.11702]
[1746043058493,1.11712,1790.3,1789.9,2.79317]
[1746043058697,3.2078,1790.1,1790.0,1.11726]
[1746043059001,3.2078,1790.1,1790.0,41.91726]
[1746043059197,3.2078,1790.1,1790.0,43.55536]
[1746043059399,4.325,1790.1,1790.0,43.55536]
[1746043060199,3.2078,1790.1,1790.0,43.55536]
[1746043060500,4.325,1790.1,1790.0,43.55536]
[1746043060994,3.2078,1790.1,1790.0,1.11726]
[1746043061293,7.0358,1790.1,1790.0,1.11726]
[1746043062196,3.2078,1790.1,1790.0,1.11726]
[1746043063995,3.2078,1790.3,1790.2,1.11713]
[1746043065303,3.2078,1790.3,1790.2,2.76893]
[1746043067502,4.32487,1790.3,1790.2,1.11713]
[1746043068101,8.15287,1790.3,1790.2,1.11713]
[1746043068616,1.11732,1790.0,1789.9,1.11728]
[1746043068800,4.32512,1790.0,1789.9,1.11728]
[1746043069194,4.32506,1790.0,1789.9,1.11728]
[1746043070508,1.11742,1789.8,1789.7,1.11736]
[1746043071194,1.6022,1789.9,1789.4,10.54047]
[1746043071399,3.57669,1789.7,1789.6,1.11746]
[1746043071799,3.57669,1789.7,1789.5,1.11751]
[1746043071800,1.11751,1789.6,1789.5,1.11751]
[1746043072011,5.91561,1789.6,1789.5,1.11751]
[1746043072403,4.7981,1789.6,1789.5,1.11751]
[1746043072598,5.91561,1789.6,1789.5,1.11751]
[1746043073106,9.74361,1789.6,1789.5,1.11751]
[1746043074907,1.11766,1789.4,1789.3,1.11763]
[1746043075112,3.2078,1789.4,1789.3,1.11769]
[1746043076709,4.7912,1789.4,1789.3,1.11769]
[1746043077103,5.90883,1789.4,1789.3,1.11769]
[1746043077308,9.73683,1789.4,1789.3,1.11769]
[1746043077998,8.6192,1789.4,1789.3,1.11769]
[1746043078201,9.73683,1789.4,1789.3,1.11769]
[1746043078411,8.6192,1789.4,1789.3,1.11769]
[1746043079013,9.73683,1789.4,1789.3,1.11769]
[1746043079513,8.6192,1789.4,1789.3,1.11769]
[1746043079708,3.828,1789.4,1789.3,9.32549]
[1746043079909,0.3813,1789.4,1789.3,9.32549]
[1746043080109,0.3813,1789.4,1789.3,11.03399]
[1746043080310,3.2078,1789.6,1789.5,1.11757]
[1746043080504,3.2078,1789.8,1789.6,5.58756]
[1746043080702,4.32519,1789.8,1789.7,1.11744]
[1746043080913,1.11751,1789.7,1789.6,1.11746]
[1746043081116,2.70041,1789.7,1789.6,1.11746]
[1746043081309,1.11757,1789.6,1789.5,1.11755]
[1746043081615,1.11757,1789.6,1789.4,1.1176]
[1746043081616,1.11765,1789.5,1789.4,1.1176]
[1746043082018,2.70055,1789.5,1789.4,1.1176]
[1746043082217,6.52855,1789.5,1789.4,1.1176]
[1746043082519,5.4109,1789.5,1789.4,1.1176]
[1746043082720,6.52847,1789.5,1789.4,1.1176]
[1746043083316,1.11769,1789.3,1789.2,2.73533]
[1746043083529,4.32549,1789.3,1789.2,1.11773]
[1746043084115,1.11781,1789.2,1789.1,1.11778]
[1746043084418,4.48151,1789.2,1789.1,1.11778]
[1746043084619,3.3637,1789.2,1789.1,1.11778]
[1746043084818,4.48146,1789.2,1789.1,1.11778]
[1746043085321,6.3863,1789.2,1789.1,1.11778]
[1746043086121,7.50406,1789.2,1789.1,1.11778]
[1746043086318,3.67606,1789.2,1789.1,1.11778]
[1746043087228,7.50406,1789.2,1789.1,1.11778]
[1746043088025,1.11782,1789.1,1789.0,1.11784]
[1746043088226,6.05942,1789.1,1789.0,1.11784]
[1746043088524,4.7049,1789.2,1788.8,3.2078]
[1746043088729,1.11806,1788.8,1788.7,1.11802]
[1746043089125,6.89309,1788.9,1788.8,1.11801]
[1746043090329,5.7751,1788.9,1788.8,1.11801]
[1746043090631,6.89304,1788.9,1788.8,1.11801]
[1746043091335,6.56257,1789.1,1789.0,1.11788]
[1746043091336,3.768,1789.1,1789.0,1.11788]
[1746043091526,6.00248,1789.1,1788.6,43.5952]
[1746043091831,1.11801,1788.9,1788.8,1.11796]
[1746043092430,1.96401,1788.9,1788.8,1.11796]
[1746043092627,5.17181,1788.9,1788.8,1.11796]
[1746043093627,5.17181,1788.9,1788.5,3.61859]
[1746043093628,1.1182,1788.6,1788.5,1.11816]
[1746043093835,1.11831,1788.4,1788.3,1.11828]
[1746043094624,1.11833,1788.3,1788.2,1.11833]
[1746043094829,4.32613,1788.3,1788.2,1.11833]
[1746043095031,5.99303,1788.3,1788.2,1.11833]
[1746043095829,3.2078,1788.7,1788.6,1.11813]
[1746043096139,1.11815,1788.6,1788.5,1.11816]
[1746043096321,1.6482,1788.6,1788.5,1.11816]
[1746043096532,9.44368,1788.6,1788.0,2.79612]
[1746043096826,1.11838,1788.3,1788.2,1.11836]
[1746043097026,1.11844,1788.1,1788.0,43.54687]
[1746043097230,1.11856,1788.0,1787.9,1.11854]
[1746043097526,1.92346,1788.0,1787.9,1.11857]
[1746043097827,1.11857,1787.9,1787.8,60.62377676]
[1746043098027,4.856,1787.9,1787.8,60.62377676]
[1746043098423,4.856,1787.9,1787.8,41.91859]
[1746043099229,4.0202,1788.1,1788.0,1.11851]
[1746043100035,5.7647,1788.1,1788.0,1.11851]
[1746043100229,1.11855,1788.0,1787.9,1.11854]
[1746043100435,3.65755,1788.0,1787.9,1.11854]
[1746043101435,2.539,1788.0,1787.9,1.11854]
[1746043103036,3.65751,1788.0,1787.9,1.11854]
[1746043103439,2.539,1788.0,1787.9,1.11854]
[1746043104339,4.0202,1788.1,1788.0,1.11851]
[1746043105030,4.0202,1788.1,1788.0,2.84531]
[1746043105634,3.2078,1788.1,1788.0,2.84531]
[1746043106139,3.2078,1788.3,1788.2,1.11838]
[1746043106338,3.2078,1788.3,1788.2,2.76268]
[1746043106733,4.9616,1788.3,1788.2,2.76268]
[1746043107840,6.07992,1788.3,1788.2,2.76268]
[1746043108938,4.9616,1788.3,1788.2,2.76268]
[1746043109642,3.2078,1788.3,1788.2,2.76268]
[1746043110640,4.32612,1788.3,1788.2,1.6443]
[1746043110835,9.8723,1788.3,1787.9,0.8354]
[1746043111043,1.11847,1788.1,1788.0,1.11845]
[1746043111442,2.78293,1788.2,1788.1,1.11844]
[1746043111838,1.6645,1788.2,1788.1,1.11844]
[1746043112036,2.78288,1788.2,1788.1,1.11844]
[1746043114352,1.11851,1788.1,1788.0,1.11846]
[1746043114648,6.05461,1788.1,1788.0,1.11846]
[1746043116152,1.11863,1787.9,1787.8,1.11857]
[1746043116547,4.56387,1788.0,1787.9,1.11857]
[1746043116749,2.83557,1788.0,1787.9,1.11857]
[1746043117551,1.11857,1787.9,1787.8,1.11861]
[1746043117752,3.2078,1787.9,1787.6,1.6604]
[1746043117953,4.3265,1787.7,1787.6,1.11876]
[1746043118455,1.11882,1787.6,1787.5,1.11877]
[1746043118653,1.11882,1787.6,1787.5,2.77917]
[1746043119156,1.11882,1787.6,1787.5,6.60717]
[1746043119747,3.2078,1787.7,1787.6,1.11876]
[1746043119951,4.32653,1787.7,1787.6,1.11876]
[1746043120254,4.3265,1787.7,1787.6,2.77916]
[1746043120452,3.2078,1787.7,1787.6,2.77916]
[1746043121254,4.3265,1787.7,1787.6,2.77916]
[1746043121663,3.2078,1787.7,1787.6,2.77916]
[1746043121959,1.11864,1787.8,1787.7,1.11863]
[1746043122154,1.11864,1787.8,1787.7,2.76983]
[1746043122761,1.11864,1787.8,1787.7,2.77549499]
[1746043123260,1.11864,1787.8,1787.7,6.60349499]
[1746043123463,8.14442,1787.9,1787.8,1.11863]
[1746043123662,8.14442,1787.9,1787.8,2.83643]
[1746043125963,4.32642,1787.9,1787.8,2.83643]
[1746043127661,4.32642,1787.9,1787.8,1.11863]
[1746043127865,1.11863,1787.8,1787.7,1.12430499]
[1746043128271,1.11863,1787.8,1787.7,4.95230499]
[1746043128463,3.2078,1787.9,1787.8,1.11863]
[1746043128464,4.3264,1787.9,1787.8,1.11863]
[1746043128768,4.32637,1787.9,1787.8,1.11863]
[1746043129064,4.32637,1787.9,1787.8,2.72153]
[1746043129262,4.32637,1787.9,1787.8,6.54953]
[1746043130059,4.32637,1787.9,1787.8,5.4309]
[1746043130267,4.32637,1787.9,1787.8,3.828]
[1746043130658,1.11863,1787.8,1787.7,0.00566499]
[1746043131270,11.64613,1787.8,1787.7,0.00566499]
[1746043133274,6.64613,1787.8,1787.7,0.00566499]
[1746043135371,2.81813,1787.8,1787.7,0.00566499]
[1746043139167,6.64613,1787.8,1787.7,0.00566499]
[1746043139373,11.74499176,1787.8,1787.7,4.99e-06]
[1746043140669,11.7449945,1787.8,1787.7,4.99e-06]
[1746043140867,6.64613,1787.8,1787.7,4.99e-06]
[1746043141267,2.81813,1787.8,1787.7,4.99e-06]
[1746043141669,3.2078,1787.9,1787.8,1.11863]
[1746043141868,3.2078,1787.9,1787.8,2.78633]
[1746043142161,4.32637,1787.9,1787.8,5.4957]
[1746043142473,4.32637,1787.9,1787.8,6.61433]
[1746043143275,3.2078,1787.9,1787.8,2.78633]
[1746043144174,4.32637,1787.9,1787.8,3.828]
[1746043144374,6.79827,1787.9,1787.8,3.828]
[1746043145275,1.11863,1787.8,1787.7,4.99e-06]
[1746043145473,2.79193,1787.8,1787.7,4.99e-06]
[1746043146177,6.61993,1787.8,1787.7,4.99e-06]
[1746043146982,6.71878218,1787.8,1787.7,4.99e-06]
[1746043147472,6.61993,1787.8,1787.7,4.99e-06]
[1746043148383,2.89078033,1787.8,1787.7,4.99e-06]
[1746043149285,6.71878033,1787.8,1787.7,4.99e-06]
[1746043149876,6.71878214,1787.8,1787.7,4.99e-06]
[1746043150181,11.71878214,1787.8,1787.7,4.99e-06]
[1746043151477,1.11899,1787.3,1787.2,1.11899]
[1746043151678,4.32679,1787.3,1787.1,2.77822]
[1746043151881,1.11901,1787.2,1787.1,1.6592]
[1746043152076,2.86651,1787.2,1787.1,1.6592]
[1746043152285,4.32679,1787.3,1787.1,6.6592]
[1746043152476,1.11901,1787.2,1787.1,1.6592]
[1746043152671,2.86651,1787.2,1787.1,1.6592]
[1746043153076,3.2078,1787.3,1787.1,1.6592]
[1746043153283,4.32681,1787.3,1787.2,1.11901]
[1746043153688,4.3268,1787.3,1787.2,1.11901]
[1746043153888,4.3268,1787.3,1787.2,0.8749]
[1746043154088,4.3268,1787.3,1787.2,1.99391]
[1746043154292,4.3268,1787.3,1787.2,1.6269]
[1746043154883,6.0045,1787.3,1787.2,1.6269]
[1746043155084,1.11893,1787.4,1787.3,1.11894]
[1746043155290,9.81754,1787.8,1787.2,9.42436]
[1746043155588,2.79643,1787.9,1787.2,9.42436]
[1746043155589,1.11879,1787.6,1787.5,1.11878]
[1746043155984,1.11882,1787.5,1787.4,3.54265]
[1746043156185,4.32662,1787.5,1787.4,3.54265]
[1746043156389,1.11882,1787.5,1787.4,1.6269]
[1746043156586,4.32662,1787.5,1787.4,1.6269]
[1746043156985,3.2078,1787.8,1787.4,6.6269]
[1746043157193,1.11871,1787.7,1787.6,1.11872]
[1746043157394,6.00442,1787.8,1787.5,2.3876]
[1746043157693,4.32656,1787.6,1787.5,2.3876]
[1746043157894,4.32656,1787.6,1787.5,1.5907]
[1746043158495,4.32645,1787.8,1787.7,1.1187]
[1746043158992,4.32645,1787.8,1787.7,3.5295]
[1746043159188,3.2078,1787.8,1787.7,7.3575]
[1746043159392,4.32643,1787.8,1787.7,7.3575]
[1746043159587,3.2078,1787.8,1787.7,7.3575]
[1746043159990,3.2078,1787.8,1787.7,12.3575]
[1746043161198,3.2078,1788.1,1788.0,1.11851]
[1746043161382,2.79553,1788.5,1788.2,1.11832]
[1746043161383,3.2078,1788.4,1788.2,1.11832]
[1746043161582,4.32609,1788.4,1788.3,1.11832]
[1746043161795,1.1185,1788.1,1788.0,1.11849]
[1746043162088,3.2078,1788.1,1788.0,2.82959]
[1746043163197,4.32624,1788.1,1788.0,6.65759]
[1746043163496,3.2078,1788.1,1788.0,6.65759]
[1746043163998,5.98206,1788.3,1788.2,1.11838]
[1746043164197,4.32616,1788.3,1788.2,1.11838]
[1746043164398,1.11838,1788.2,1788.1,2.765]
[1746043164699,4.32616,1788.3,1788.2,1.11838]
[1746043164897,4.32616,1788.3,1788.2,2.76498]
[1746043165197,4.32616,1788.3,1788.2,42.4466]
[1746043165398,4.32616,1788.3,1788.2,43.56498]
[1746043165696,4.32616,1788.3,1788.2,1.6466]
[1746043166592,5.94176,1788.3,1788.2,1.6466]
[1746043167200,4.32616,1788.3,1788.2,2.76498]
[1746043168097,4.32616,1788.3,1788.2,1.6466]
[1746043168697,4.32616,1788.3,1788.2,2.76498]
[1746043169003,3.2078,1788.3,1788.2,2.76498]
[1746043169602,4.32612,1788.3,1788.2,1.6466]
[1746043170000,5.99942,1788.3,1788.2,1.6466]
[1746043170203,5.99942,1788.3,1788.2,2.76498]
[1746043170502,3.2078,1788.3,1788.2,2.76498]
[1746043170902,4.32603,1788.5,1788.3,1.11827]
[1746043171099,4.8811,1788.5,1788.3,2.5696]
[1746043171301,1.11826,1788.4,1788.3,2.5696]
[1746043171499,1.1184,1788.2,1788.1,1.11842]
[1746043172002,1.1184,1788.2,1788.1,41.91842]
[1746043172195,3.608,1788.2,1788.1,40.8]
[1746043172398,1.11844,1788.1,1788.0,3.6881]
[1746043172703,6.03054,1788.1,1788.0,3.6881]
[1746043172905,6.03054,1788.1,1788.0,42.5475]
[1746043173504,4.9121,1788.1,1787.8,1.6795]
[1746043173705,2.82283,1788.0,1787.9,1.11855]
[1746043173998,2.82283,1788.0,1787.5,7.46141305]
[1746043173999,2.79643,1787.9,1787.5,7.46141305]
[1746043174191,4.32656,1787.6,1787.5,7.46141305]
[1746043174392,1.11883,1787.5,1787.3,7.46141305]
[1746043174596,1.11883,1787.5,1787.4,2.76293]
[1746043174897,4.3266,1787.6,1787.5,1.11882]
[1746043175105,1.11882,1787.5,1787.4,2.76292]
[1746043175396,1.11882,1787.5,1787.4,3.828]
[1746043175591,1.11882,1787.5,1787.4,4.94688]
[1746043175795,4.32659,1787.6,1787.5,1.11882]
[1746043175995,3.2078,1787.6,1787.5,2.84372]
[1746043176605,4.9509,1787.8,1787.5,1.7249]
[1746043176801,1.11875,1787.7,1787.6,1.7249]
[1746043177002,4.32655,1787.7,1787.6,1.7249]
[1746043177194,4.32655,1787.7,1787.6,2.84366]
[1746043177509,3.2078,1787.7,1787.6,2.84366]
[1746043177897,3.823,1788.0,1787.9,1.11857]
[1746043177898,9.00202,1788.0,1787.9,1.11857]
[1746043178201,4.0605,1788.0,1787.7,1.7249]
[1746043178506,4.0605,1788.0,1787.9,1.11857]
[1746043178699,5.17901,1788.0,1787.9,1.11857]
[1746043179104,1.11857,1787.9,1787.8,2.71961]
[1746043179403,1.11859,1787.9,1787.8,1.1186]
[1746043179906,5.17902,1788.0,1787.9,1.11857]
[1746043180407,4.0605,1788.0,1787.9,1.11857]
[1746043180595,4.0605,1788.0,1787.9,2.71957]
[1746043180795,3.2078,1788.0,1787.9,2.71957]
[1746043181107,3.2078,1788.0,1787.9,6.54757]
[1746043181607,0.8074,1788.2,1788.1,1.11844]
[1746043182104,1.92578,1788.2,1788.1,1.11844]
[1746043182407,1.11844,1788.1,1788.0,5.5601]
[1746043182603,4.32624,1788.1,1788.0,3.828]
[1746043183108,4.32624,1788.1,1788.0,4.94651]
[1746043184408,4.32624,1788.1,1788.0,3.828]
[1746043184799,4.32624,1788.1,1788.0,4.94651]
[1746043185093,3.2078,1788.1,1788.0,4.94651]
[1746043185502,4.32624,1788.1,1788.0,4.94651]
[1746043185807,3.2078,1788.1,1788.0,4.94651]
[1746043186099,4.32624,1788.1,1788.0,6.61961]
[1746043186307,3.2078,1788.1,1788.0,6.61961]
[1746043187101,4.32624,1788.1,1788.0,6.61961]
[1746043187300,4.32624,1788.1,1788.0,4.94651]
[1746043187706,3.2078,1788.1,1788.0,4.94651]
[1746043188207,0.8074,1788.2,1788.1,1.11844]
[1746043188208,1.92578,1788.2,1788.1,1.11844]
[1746043188414,4.0152,1788.2,1788.1,1.11844]
[1746043188703,1.11844,1788.1,1788.0,3.828]
[1746043189104,1.11857,1787.9,1787.8,1.11859]
[1746043189310,4.32637,1787.9,1787.8,1.11859]
[1746043189505,3.2078,1787.9,1787.8,1.11859]
[1746043189709,1.96653,1788.0,1787.9,1.11857]
[1746043190202,2.79643,1787.9,1787.4,0.7955]
[1746043190409,4.32653,1787.7,1787.6,1.1187]
[1746043190609,3.2078,1787.7,1787.6,1.1187]
[1746043190805,1.95694,1787.8,1787.7,1.1187]
[1746043191006,1.95694,1787.8,1787.5,2.86728]
[1746043191007,1.11876,1787.6,1787.5,2.86728]
[1746043191209,1.11884,1787.5,1787.3,8.32871305]
[1746043191507,4.32668,1787.4,1787.3,8.58036305]
[1746043191703,5.20098,1787.4,1787.3,7.46141305]
[1746043191906,1.11901,1787.2,1787.1,7.46141305]
[1746043192107,4.32681,1787.2,1787.1,7.46141305]
[1746043192605,5.93561,1787.2,1787.1,7.46141305]
[1746043192806,0.805,1787.3,1787.2,1.11901]
[1746043193000,3.2078,1787.4,1787.3,1.11895]
[1746043193604,3.2078,1787.6,1787.5,1.11882]
[1746043194410,4.0821,1787.6,1787.5,1.11882]
[1746043195012,5.20086,1787.6,1787.5,1.11882]